Cogmind - Beta 9.5 @@@ ROGUE MODE // 2020.04.04 @ 00:20:29 Player: IAMCRAIG Result: Destroyed by D-53 Grenadier with Mini Grenade Launcher Performance ------------- Evolutions (2) 1000 Regions Visited (6) 1200 Robots Destroyed (80) 400 Value Destroyed (1843) 1843 Prototype IDs (34) 680 Alien Tech Used (0) 0 Bonus (442) 442 TOTAL SCORE: 5565 Bonus ------- Follower Combat Kills 210 Aligned with FarCom 300 Friendly Fire -68 Cogmind --------- Core Integrity 0/550 Matter 181/300 Energy 280/280 System Corruption 1% Temperature Cool (0) Movement Rolling (120) Ox2 Location -8/Storage Parts ------- > --- POWER (1) -------- Heavy Ion Engine > --- PROPULSION (3) --- Armored Huge Wheel > --- UTILITY (5) ------ High-capacity Storage Unit High-capacity Storage Unit Improved Targeting Computer Target Analyzer > --- WEAPON (2) ------- (None) > --- INVENTORY (20) --- Advanced Treads Armored Huge Wheel Armored Huge Wheel Aerolev Unit Aerolev Unit Improved Heat Sink Large Storage Unit High-capacity Storage Unit Medium Battery (200) High-capacity Matter Pod (200) Advanced Sensor Array Armor Integrity Analyzer Improved Utility Shielding Advanced Beam Cannon Advanced Beam Cannon Advanced Beam Cannon Peak State ------------ > --- POWER ------------ Light Nuclear Core > --- PROPULSION ------- Light Treads Light Treads Advanced Treads > --- UTILITY ---------- Improved Heat Sink High-capacity Storage Unit Humpback Weapon Shielding > --- WEAPON ----------- YOLO Cannon > --- INVENTORY -------- Backup Power I Improved Ion Engine Large Storage Unit High-capacity Storage Unit Medium Matter Pod Medium Matter Pod Medium Matter Pod Medium Matter Pod Large Matter Pod High-capacity Matter Pod High-capacity Matter Pod High-capacity Matter Pod Targeting Computer Propulsion Shielding Hardened Light Armor Plating Light EM Pulse Cannon Light EM Pulse Cannon Light EM Pulse Cannon Heavy Particle Cannon Heavy Particle Cannon Heavy Particle Cannon Heavy Particle Cannon Improved Light Cannon Improved Light Cannon Improved Light Cannon [Rating: 39] Favorites ----------- Power Light Nuclear Core Engine Heavy Ion Engine Power Core Light Nuclear Core Propulsion Light Treads Treads Light Treads Wheel Compact Wheel Hover Unit Backup Propulsion I Flight Unit Improved VTOL Module Utility Large Storage Unit Device Improved Heat Sink Storage Large Storage Unit Processor Improved Targeting Computer Protection Improved Medium Armor Plating Weapon Light EM Pulse Cannon Energy Gun Heavy EM Pulse Gun Energy Cannon Light EM Pulse Cannon Ballistic Gun Gauss Rifle Ballistic Cannon Improved Light Cannon Launcher Grenade Launcher Build | -11 -10 -10 -10 -9 -8 -8 ------- Run | Scr Mat Min Exi Min Mat Sto Slots Evolved 4 | . . . . . 4 . Power . | . . . . . . . Propulsion 1 | . . . . . 1 . Utility 3 | . . . . . 3 . Weapon . | . . . . . . . Parts Attached 83 | 8 16 6 4 1 35 13 Power 11 | 2 4 . . . 4 1 Engine 5 | 2 1 . . . 1 1 Core 6 | . 3 . . . 3 . Reactor . | . . . . . . . Propulsion 20 | 2 2 2 1 1 7 5 Treads 13 | 1 1 1 1 1 6 2 Leg . | . . . . . . . Wheel 5 | 1 1 1 . . 1 1 Hover 1 | . . . . . . 1 Flight 1 | . . . . . . 1 Utility 25 | 2 2 1 2 . 17 1 Device 1 | . . . . . 1 . Storage 13 | 2 2 . 2 . 6 1 Processor 2 | . . . . . 2 . Hackware . | . . . . . . . Protection 9 | . . 1 . . 8 . Artifact . | . . . . . . . Weapon 27 | 2 8 3 1 . 7 6 Energy Gun 7 | 1 2 . . . 1 3 Energy Cannon 8 | . 4 2 1 . . 1 Ballistic Gun 5 | 1 1 . . . 1 2 Ballistic Cannon 5 | . . . . . 5 . Launcher 2 | . 1 1 . . . . Special Weapon . | . . . . . . . Impact Weapon . | . . . . . . . Slashing Weapon . | . . . . . . . Piercing Weapon . | . . . . . . . Special Melee Weapon . | . . . . . . . Unidentified Prototypes 8 | . . . . . 2 6 Parts Lost 17 | . 1 1 . . 10 5 Power 4 | . 1 . . . 3 . Propulsion 4 | . . . . . 2 2 Utility 4 | . . . . . 3 1 Weapon 5 | . . 1 . . 2 2 Highest Loss Streak 5 | . 1 1 . . 4 5 Average Slot Usage (%) 88 | . 98 98 78 71 88 89 Engine 2 | . 5 . . . 4 9 Core 9 | . 8 14 14 14 4 . Treads 16 | . 13 14 25 28 12 8 Wheel 8 | . 13 14 2 . 7 9 Storage 19 | . 28 16 13 14 18 18 Processor 4 | . . . . . 10 18 Protection 6 | . . 11 5 . 13 9 Energy Gun 2 | . 10 . . . . 1 Energy Cannon 11 | . 12 23 16 14 . 1 Ballistic Gun 1 | . . . . . 3 6 Ballistic Cannon 3 | . . . . . 12 8 Launcher 1 | . 3 2 . . . . Naked Turns . | . . . . . . . Heaviest Build 137 | 16 37 36 103 103 137 87 Greatest Support 62 | 16 20 20 40 40 62 28 Greatest Overweight (x) 3 | . 2 2 2 2 3 3 Average Overweight (x) 1 | . 1 1 1 2 1 2 Largest Inventory Capacity 32 | 8 14 14 24 24 32 20 Average Capacity 16 | 6 11 10 18 24 18 18 Most Carried 27 | 7 14 14 21 24 27 20 Average Carried 15 | 3 10 10 12 23 17 18 Final Capacity 24 | 8 14 10 24 24 18 20 Final Carried 24 | 6 14 10 21 24 18 18 Class Distribution -------------------- 72% | Mutant 25% | Hauler-Mutant Dominant Class ---------------- Mutant | -10/Materials Mutant | -10/Mines Hauler-Mutant | -10/Exiles Hauler-Mutant | -9/Mines Mutant | -8/Materials Mutant | -8/Storage Resources | -11 -10 -10 -10 -9 -8 -8 ----------- Run | Scr Mat Min Exi Min Mat Sto Matter Collected 2558 | 282 328 175 320 50 1339 64 Remotely . | . . . . . . . Salvage Created 2027 | 55 475 257 . 156 865 219 Parts 123 | 5 28 7 . 18 54 11 Haulers Intercepted 2 | . 1 . . . 1 . Recyclers Shooed 4 | . . 1 . . 2 1 Parts Field Recycled . | . . . . . . . Retrieved Matter . | . . . . . . . Parts Self-Destructed . | . . . . . . . Prevented . | . . . . . . . Kills | -11 -10 -10 -10 -9 -8 -8 ------- Run | Scr Mat Min Exi Min Mat Sto Combat Hostiles Destroyed 66 | . 11 19 . 9 24 3 Guns 11 | . 3 . . . 5 3 Cannons 23 | . 5 1 . . 17 . AOE 31 | . 2 18 . 9 2 . Classes Destroyed 10 | 1 4 2 . 1 2 . Worker 3 | . . . . 2 1 . Builder 2 | . . 1 . . 1 . Hauler 2 | . 1 . . . 1 . Recycler 4 | 1 . 2 . . . 1 Watcher 3 | . 2 . . . 1 . Swarmer 14 | . 3 1 . 7 3 . Grunt 22 | . 8 1 . 2 11 . Sentry 9 | . . . . . 6 3 Hunter 4 | . . . . . 4 . Assembled 17 | . . 17 . . . . Best Kill Streak 13 | 1 3 13 . 5 7 2 Combat Bots Only 13 | . 3 13 . 4 3 1 Max Kills in Single Turn 5 | 1 1 5 . 3 1 2 Gunslinging . | . . . . . . . Exploded 5 | . 1 5 . 2 1 . Melee . | . . . . . . . Uniques/NPCs Destroyed . | . . . . . . . Combat | -11 -10 -10 -10 -9 -8 -8 -------- Run | Scr Mat Min Exi Min Mat Sto Damage Taken 3944 | . 506 273 . 167 1914 1084 Core 495 | . 112 44 . 38 164 137 Absorbed by Shields . | . . . . . . . Core Remaining (%) 61 | 100 . . . 22 . . Volleys Fired 167 | 2 48 21 . 7 77 12 Largest 2 | 2 2 2 . 1 2 2 Hottest 112 | 60 112 112 . 100 100 107 Shots Fired 274 | 4 66 26 . 7 147 24 Gun 61 | 4 35 2 . . 12 8 Cannon 199 | . 29 12 . 7 135 16 Launcher 14 | . 2 12 . . . . Special . | . . . . . . . Kinetic 169 | 2 3 . . . 144 20 Thermal 14 | . . . . 7 3 4 Explosive 14 | . 2 12 . . . . Electromagnetic 77 | 2 61 14 . . . . Robot Hit Streak 9 | . 9 3 . . 7 9 Robot Miss Streak 5 | 3 5 4 . 1 5 2 Penetration Max 1 | . . . . . . 1 Secondary Targets . | . . . . . . . Shots Hit Robots 152 | . 40 10 . . 88 14 Core Hits 122 | 2 15 40 . 11 49 5 Critical Hits 6 | . . . . . 4 2 Critical Kills 1 | . . . . . 1 . Critical Parts Destroyed 5 | . . . . . 3 2 Melee Attacks . | . . . . . . . Impact . | . . . . . . . Slashing . | . . . . . . . Piercing . | . . . . . . . Sneak Attacks . | . . . . . . . Combat Hostiles . | . . . . . . . Follow-up Attacks . | . . . . . . . Damage Inflicted 5733 | 16 1089 1197 . 785 2310 336 Guns 756 | 16 338 30 . . 205 167 Cannons 2527 | . 430 109 . . 1825 163 Explosions 2435 | . 321 1058 . 785 271 . Melee . | . . . . . . . Ramming 15 | . . . . . 9 6 Kinetic 2136 | 16 . . . . 1830 290 Thermal 1459 | . 163 . . 785 471 40 Explosive 1216 | . 158 1058 . . . . Electromagnetic 907 | . 768 139 . . . . Impact . | . . . . . . . Slashing . | . . . . . . . Piercing . | . . . . . . . Highest Corruption 1 | . . . . . 1 1 Average Corruption 1 | . . . . . 1 1 Corruption Purged . | . . . . . . . Effects 2 | . . . . . 1 1 Message Errors 2 | . . . . . 1 1 Overload Shots . | . . . . . . . Overflow Damage 309 | . 155 20 . 39 85 10 Projectiles 127 | . 32 . . . 85 10 Explosions 182 | . 123 20 . 39 . . Melee . | . . . . . . . Knockbacks 20 | . . . . . 20 . Impact . | . . . . . . . Kinetic 20 | . . . . . 20 . Secondary . | . . . . . . . Self-Inflicted Damage 236 | . 67 85 . . 84 . Shots 8 | . 2 5 . . 1 . Rammed 2 | . . . . . 1 1 Targets Rammed 2 | . . . . . 1 1 Kicked . | . . . . . . . Crushed . | . . . . . . . Highest Temperature 353 | 40 195 198 . 28 353 144 Average Temperature 73 | 24 67 68 . 16 88 49 Received Heat Transfer 980 | . 162 152 . 45 522 99 Effects 2 | . . . . . 2 . Energy Bleed 1 | . . . . . 1 . Matter Decay 1 | . . . . . 1 . Siege Activations . | . . . . . . . Robots Corrupted 2 | . 2 . . . . . Combat Hostiles 1 | . 1 . . . . . Parts Fried 6 | . 6 . . . . . Impact Corruptions . | . . . . . . . Robots Melted . | . . . . . . . Combat Hostiles . | . . . . . . . Parts Melted . | . . . . . . . Heat Transferred 1114 | . 100 . . 560 400 54 Parts Sabotaged . | . . . . . . . Parts Stolen . | . . . . . . . Parts Stripped . | . . . . . . . Power Chain Reactions 2 | . 2 . . . . . Missiles Intercepted . | . . . . . . . Alert | -11 -10 -10 -10 -9 -8 -8 ------- Run | Scr Mat Min Exi Min Mat Sto Peak Influence 354 | 5 206 81 . 189 268 354 Average Influence 83 | 1 70 32 . 82 116 136 Maximum Alert Level 1 | . 1 . . . 1 1 Low Security (%) 93 | 100 94 100 . 100 89 81 Level 1 6 | . 5 . . . 10 18 Level 2 . | . . . . . . . Level 3 . | . . . . . . . Level 4 . | . . . . . . . Level 5 . | . . . . . . . High Security . | . . . . . . . Max Security . | . . . . . . . Squads Dispatched 12 | . 2 . . . 5 5 Investigation 6 | . 2 . . . 4 . Extermination . | . . . . . . . Reinforcement 4 | . . . . . 1 3 Assault 2 | . . . . . . 2 Garrison . | . . . . . . . Intercept . | . . . . . . . Construction Impeded 1 | . . . . . . 1 Haulers Reinforced . | . . . . . . . Stealth | -11 -10 -10 -10 -9 -8 -8 --------- Run | Scr Mat Min Exi Min Mat Sto Distress Signals 8 | . . . . . 4 4 Communications Jammed . | . . . . . . . Distress Signals . | . . . . . . . Times Spotted 100 | . 20 23 . 11 34 12 Peak Tracking Total 12 | . 3 9 . 3 9 12 Tactical Retreats 5 | . 1 1 . . 3 . Traps | -11 -10 -10 -10 -9 -8 -8 ------- Run | Scr Mat Min Exi Min Mat Sto Traps Triggered 3 | . 1 . . . 2 . Indirectly . | . . . . . . . Trap Hack Attempts . | . . . . . . . Triggered . | . . . . . . . Disarmed . | . . . . . . . Reprogrammed 3 | . 3 . . . . . Reused . | . . . . . . . Traps Extracted . | . . . . . . . Installed . | . . . . . . . Triggered . | . . . . . . . Machines | -11 -10 -10 -10 -9 -8 -8 ---------- Run | Scr Mat Min Exi Min Mat Sto Machines Disabled 5 | . 3 . . . 1 1 Max in Single Turn 2 | . 2 . . . 1 1 Machines Sabotaged . | . . . . . . . Garrisons Compromised . | . . . . . . . Overloaded Fab Kills . | . . . . . . . Fab Network Shutdowns . | . . . . . . . Hacking | -11 -10 -10 -10 -9 -8 -8 --------- Run | Scr Mat Min Exi Min Mat Sto Machines Accessed 31 | . 11 . 1 . 11 8 Terminals 22 | . 8 . . . 7 7 Fabricators . | . . . . . . . Repair Stations 1 | . 1 . . . . . Recycling Units 5 | . 2 . . . 2 1 Scanalyzers 2 | . . . . . 2 . Garrison Access . | . . . . . . . Total Hacks 116 | . 44 . 1 . 37 34 Successful 81 | . 30 . 1 . 28 22 Failed 34 | . 13 . . . 9 12 Catastrophic 3 | . . . . . . 3 Database Lockouts 1 | . 1 . . . . . Manual 62 | . 26 . 1 . 14 21 Terminals 87 | . 30 . . . 26 31 Fabricators . | . . . . . . . Repair Stations 9 | . 9 . . . . . Recycling Units 13 | . 5 . . . 5 3 Scanalyzers 6 | . . . . . 6 . Garrison Access . | . . . . . . . Terminal Hacks 29 | . 9 . 1 . 11 8 Robot Analysis 6 | . 2 . . . 1 3 Prototype ID Bank 3 | . . . . . 3 . Level Access Points 2 | . . . . . 1 1 Branch Access Points 1 | . . . . . 1 . Alert Level 2 | . . . . . 1 1 Unreport Threat 4 | . 1 . . . 2 1 Locate Traps 3 | . 2 . . . . 1 Reprogram Traps 1 | . 1 . . . . . Hauler Manifests 2 | . 1 . . . 1 . Registered Components 2 | . 1 . . . . 1 Zone Layout 2 | . 1 . . . 1 . EX-Prototype ID Bank 1 | . . . 1 . . . Fabricator Hacks . | . . . . . . . Repair Station Hacks 8 | . 8 . . . . . Scan Component 3 | . 3 . . . . . Repair 3 | . 3 . . . . . Refit 2 | . 2 . . . . . Recycling Unit Hacks 8 | . 3 . . . 3 2 Report Inventory 5 | . 2 . . . 2 1 Retrieve Components 3 | . 1 . . . 1 1 Scanalyzer 5 | . . . . . 5 . Insert Component 3 | . . . . . 3 . Analyze 2 | . . . . . 2 . Garrison Access Hacks . | . . . . . . . Unauthorized Hacks 74 | . 28 . . . 19 27 Terminals 27 | . 9 . . . 7 11 Track 4 | . 1 . . . . 3 Assimilate 1 | . 1 . . . . . Botnet 19 | . 5 . . . 7 7 Disrupt 2 | . 1 . . . . 1 Operators 1 | . 1 . . . . . Fabricators . | . . . . . . . Repair Stations . | . . . . . . . Recycling Units 4 | . 1 . . . 2 1 Reject 4 | . 1 . . . 2 1 Scanalyzers . | . . . . . . . Garrison Access . | . . . . . . . Data Cores Recovered . | . . . . . . . Used . | . . . . . . . Hacking Detections 27 | . 10 . . . 10 7 Full Trace Events 3 | . 1 . . . 2 . Feedback Events 1 | . . . . . 1 . Corruption 1 | . . . . . 1 . Feedback Blocked . | . . . . . . . Robot Schematics Acquired . | . . . . . . . Robots Built . | . . . . . . . Matter . | . . . . . . . Time . | . . . . . . . Total Robot Build Rating . | . . . . . . . Part Schematics Acquired 2 | . . . . . 2 . Parts Built . | . . . . . . . Matter . | . . . . . . . Time . | . . . . . . . Total Part Build Rating . | . . . . . . . Parts Repaired 3 | . 3 . . . . . Time 90 | . 90 . . . . . Parts Recycled . | . . . . . . . Recycled Matter . | . . . . . . . Retrieved Matter . | . . . . . . . Retrieved Components 29 | . 10 . . . 10 9 Parts Scanalyzed 2 | . . . . . 2 . Part Schematics Acquired 2 | . . . . . 2 . Parts Damaged . | . . . . . . . Bothacking | -11 -10 -10 -10 -9 -8 -8 ------------ Run | Scr Mat Min Exi Min Mat Sto Used RIF Installer . | . . . . . . . Robots Hacked . | . . . . . . . Non-combat . | . . . . . . . Combat . | . . . . . . . Robot Hacks Applied . | . . . . . . . Relay Couplers Released . | . . . . . . . Robots Rewired 1 | . . 1 . . . . Allies Hacked . | . . . . . . . Hacks Repelled . | . . . . . . . Allies | -11 -10 -10 -10 -9 -8 -8 -------- Run | Scr Mat Min Exi Min Mat Sto Total Allies 16 | . . 1 . 3 . 12 Largest Group 11 | . . 1 1 4 3 11 Highest-Rated Group 219 | . . 16 16 54 40 219 Highest-Rated Ally 31 | . . 16 16 16 16 31 Total Orders . | . . . . . . . Ally Attacks 80 | . . 6 . 7 15 52 Total Damage 1009 | . . 65 . 105 163 676 Kills 18 | . . 2 . 1 5 10 Allies Corrupted . | . . . . . . . Allies Melted . | . . . . . . . Intel | -11 -10 -10 -10 -9 -8 -8 ------- Run | Scr Mat Min Exi Min Mat Sto Robot Analysis Total 6 | . 2 . . . 1 3 Derelict Logs Recovered 2 | . . 1 . 1 . . Drone Launches . | . . . . . . . Drone Recoveries . | . . . . . . . Exploration | -11 -10 -10 -10 -9 -8 -8 ------------- Run | Scr Mat Min Exi Min Mat Sto Turns Passed 7075 | 85 1475 1273 740 1124 1796 582 Spaces Moved 4376 | 62 1009 991 421 540 1025 328 Core 3 | 3 . . . . . . Treads 1338 | . 146 105 300 540 159 88 Legs . | . . . . . . . Wheels 3035 | 59 863 886 121 . 866 240 Hover . | . . . . . . . Flight . | . . . . . . . Fastest Speed 50 | 50 100 110 110 200 120 120 Average Speed 139 | 97 122 118 170 200 130 148 Slowest Speed 220 | 100 180 180 200 200 220 220 Overloaded Moves . | . . . . . . . Propulsion Burnouts . | . . . . . . . Robots Hopped . | . . . . . . . Cave-ins Triggered . | . . . . . . . Exploration Rate (%) 69 | 5 98 99 78 98 70 39 Regions Visited 6 Branch Regions 4 Pre-discovered Areas 3 | . . 2 . 1 . . Known Exits Taken 1 | . . . . . 1 . Unknown Exits Taken 5 | 1 1 1 1 1 . . Scrap Searched 4 | . . 1 . 3 . . Spaces Dug 67 | . 10 8 . 49 . . Terrain Destroyed 331 | . 68 91 . 114 57 1 Melee . | . . . . . . . Projectile 13 | . . . . 7 5 1 AOE 318 | . 68 91 . 107 52 . Actions | -11 -10 -10 -10 -9 -8 -8 --------- Run | Scr Mat Min Exi Min Mat Sto Total 5091 | 79 1190 1069 447 568 1337 401 Wait 297 | 1 79 40 . 11 141 25 Move 4370 | 61 1008 990 420 539 1024 328 Hop . | . . . . . . . Pick Up 79 | 6 14 3 17 6 27 6 Fast Attach 42 | 7 9 . 2 . 15 9 Attach 16 | . 1 3 1 . 9 2 Detach 12 | . 7 . 2 . 2 1 Swap 25 | 1 6 3 1 1 11 2 Drop 79 | 1 18 8 4 4 30 14 Fire 167 | 2 48 21 . 7 77 12 Melee . | . . . . . . . Ram . | . . . . . . . Kick . | . . . . . . . Crush 2 | . . . . . 1 1 Escape Stasis . | . . . . . . . Rewire 2 | . . 1 . . . 1 Trap . | . . . . . . . Miscellaneous . | . . . . . . . Route ------- -11/Scrapyard -10/Materials (discovered 4 exits: [*Mat x3] / [*Min]) -10/Mines (discovered 3 exits: [*Mat x2] / *Exi) -10/Exiles -9/Mines (discovered 2 exits: *Mat x2) -8/Materials (discovered 5 exits: *Fac x3 / *Sto x2) -8/Storage (discovered 1 exit: Fac) History --------- Turn | Location | Event 21 | -11/Scrapyard | Discovered new exit (range 14) 86 | -11/Scrapyard | Entered Materials 245 | -10/Materials | Discovered new exit (range 16) 265 | -10/Materials | Central database locked down 289 | -10/Materials | Discovered new exit (range 13) 302 | -10/Materials | Build established: Mutant 393 | -10/Materials | Repaired Com. Wheel 582 | -10/Materials | Discovered new exit (range 5) 1017 | -10/Materials | Discovered new exit (range 3) 1513 | -10/Materials | Repaired Lgt. Nuclear Core 1540 | -10/Materials | Repaired Lgt. Treads 1561 | -10/Materials | Entered Mines 1562 | -10/Mines | Assembled infested the area 1562 | -10/Mines | Learned location of Storage (-8) 1567 | -10/Mines | Assisted by a Guerilla fighting off Assembled 1594 | -10/Mines | Core integrity fell below 50% 1624 | -10/Mines | Destroyed 13 combat bots 1668 | -10/Mines | Learned location of Zion (-6) 1767 | -10/Mines | Discovered new exit (range 5) 1958 | -10/Mines | Discovered new exit (range 5) 2346 | -10/Mines | Rewired Cogmind 2817 | -10/Mines | Deemed a non-threat by the Exiles lab entrance 2817 | -10/Mines | Discovered new exit (range 5) 2834 | -10/Mines | Entered Exiles 2834 | -10/Exiles | Accompanied by 1 ally 2861 | -10/Exiles | Met 8R-AWN 2880 | -10/Exiles | Met EX-HEX 2911 | -10/Exiles | Met EX-BIN 2927 | -10/Exiles | Aligned with FarCom system 2928 | -10/Exiles | Given EX-Vault access code 2957 | -10/Exiles | Opened EX-Vault 2970 | -10/Exiles | Found YOLO Cannon 3023 | -10/Exiles | Warned to stay clear of 0b10 Research branches 3233 | -10/Exiles | Met EX-DEC 3270 | -10/Exiles | Visited The Gauntlet 3418 | -10/Exiles | Build established: Hauler-Mutant 3552 | -10/Exiles | Discovered new exit (range 10) 3574 | -10/Exiles | Left Exiles lab with YOLO Cannon 3574 | -10/Exiles | Entered Mines 3574 | -9/Mines | Accompanied by 1 ally 3680 | -9/Mines | Discovered new exit (range 15) 4389 | -9/Mines | Joined a pair of Derelicts in attacking an 0b10 outpost 4493 | -9/Mines | Assisted by bots powering up and referring to "LRC-V3" 4685 | -9/Mines | Discovered new exit (range 6) 4698 | -9/Mines | Entered Materials 4698 | -8/Materials | Accompanied by 3 allies 4698 | -8/Materials | Evolved 4 slots: Propulsion x1, Utility x3 4835 | -8/Materials | Core integrity fell below 50% 4865 | -8/Materials | Lost 4 parts (1p2u1w) 4939 | -8/Materials | Discovered new exit (range 16) 5128 | -8/Materials | Build established: Mutant 5319 | -8/Materials | Identified exit to Factory 5637 | -8/Materials | Lost 3 parts (1p1n1u) 5732 | -8/Materials | Identified exit to Storage 6494 | -8/Materials | Entered Storage 6782 | -8/Storage | Core integrity fell below 20% 6836 | -8/Storage | Assisted by bots powering up and referring to "LRC-V3" 6952 | -8/Storage | Met a pair of Derelict thieves 7076 | -8/Storage | Destroyed by D-53 Grenadier with Mini Grenade Launcher Last Messages --------------- to local area. 07062_ U-05 Engineer lays Concrete. 07064_ Adv. Beam Cannon destroyed. 07064_ U-05 Engineer lays Concrete. 07065_ U-05 Engineer destroyed. 07065_ U-05 Engineer lays Concrete. 07068_ The unstable cave ceiling collapses. 07068_ U-05 Engineer lays Concrete. 07068_ U-05 Engineer builds a Wall. 07070_ Imp. Medium Armor Plating destroyed. 07070_ U-05 Engineer lays Concrete. 07071_ Arm. Huge Wheel destroyed. 07071_ Imp. Treads destroyed. 07071_ U-05 Engineer destroyed. 07072_ K-01 Serf collects debris. 07072_ U-05 Engineer lays Concrete. 07073_ O-24 Administrator: "IFF HANDSHAKE FAILED. SECURING TERMINAL." 07073_ U-05 Engineer lays Concrete. 07073_ K-01 Serf destroyed. 07074_ U-05 Engineer lays Concrete. Map ----- +----------------------------------------------------+ | ??#=="=# T %% + / #=[[r #??? | | ??###### ###### ## ## !*[ #??? | | ???????## ##?#### ## ## ! "" """ #??? | | ????????# #??# ####+###### "" """ #??? | | ????????# #??# [k u "d"%""" #??? | | ????????# #??# !% ! [ #??? | | ????????# #??# ! ## % ####??? | | ????????# #??# ########## #### # #####?? | | ????????# ##########????????# | | ????????# ## ! #?????????# | | ????????# ## g #?????????# | | ????????# ## #?????????# ############## | | ????????# ## g #?????????# gl #????????????? | | ????????# + /########### i#????????????? | | ????#####+## ## # g #????????????? | | ????#! * ##+##+## T # #????????????? | | ???##%= # ### # ##???????????? | | ???# !"" + #?# # ^^ ;#???????????? | | ???## "T # #?# d ^ #????????????? | | ????# "" ## #?# """"" d ##???????????? | | ????# ## #?# """"" ##??????????? | | ????######### #?# """"" # #??????????? | | ????????????# #?# #??????????? | | ????????????# ##### #??????????? | | ????????????# #??????????? | | ????????????+ @ ##??????????? | | ????????????# #??????????? | | ????????????# u = ##??????????? | | ????????????# |%! g gggg ????? | | ????????????# ! ???? | | ????????????# ???? | | ????????????### ########### #####+#######????? | | ??????????????#o?????Y????#######???? ??????????? | | ????????????????????????????????????? ?????????? | | ?????????????????????????????????????? ?????????? | | ?????????????????????????????????????? ?????????? | | ??????????????????????????????????????? ????????? | | ?????????????????????????????????????????????????? | | ??????????????????????????o??????????????????????? | | ?????????????????????????????????????????????????? | | ?????????????????????????????????????????????????? | | ?????????????????????????????????????????????????? | | ?????????????????????????????????????????????????? | | ?????????????????????????????????????????????????? | | ?????????????????????????????????????????????????? | | ?????????????????????????????????????????????????? | | ?????????????????????????????????????????????????? | | ?????????????????????????????????????????????????? | | ?????????????????????????????????????????????????? | | ?????????????????????????????????????????????????? | +----------------------------------------------------+ Best States ------------- Heat Dissipation 45 Energy Generation 14 Energy Capacity 280 Matter Stores 450 Matter Capacity 450 Sight Range 16 Terrain Scan Density 10 Armor Coverage 675 Weapon Shielding 33 Evasion (%) 40 Targeting Accuracy 6 Target Analysis 5 Recoil Reduction 3 Item Schematics ----------------- Arm. Huge Wheel | -8/Materials | Scanalyzed Hcp. Storage Unit | -8/Materials | Scanalyzed Robot Schematics ------------------ None Fabricated ------------ Nothing Alien Tech Used ----------------- None Achievements -------------- None Challenges ------------ None Game ------ Seed TransmissionAlloyArmor Manual? 0 Play Time 01:09:40 Cumulative 103.3 hours Start 2020.04.03 @ 23:02:24 End 2020.04.04 @ 00:20:29 Sessions 1 Manual Loads 0 Difficulty Rogue Special Mode None Game No. 33 Rogue 33 Adventurer 0 Explorer 0 Win Type - Total 1 Types 1/0/0/0/0/0/0 Lore% 49 Gallery% 61 Achievement% 58 Wizard Run 0 Options --------- ASCII 1 Keyboard 1 Movement Numpad Keybinds 0 Fullscreen 1 Font 16/SmallcapsGlow Map View 75x55 Tactical HUD 1 Map Filters NONE Filters NONE Steam 1 RUN: 7ca96a17-6ed6-483c-8bdb-91ece3847793